fUST/lending_fUST_20241123
["ID","MTS","AMOUNT","RATE_DAILY","PERIOD"]
[343117476,1732367441724,-434.61261755,0.00021095,2]
[343117477,1732367441733,-500.0,0.00021095,2]
[343117480,1732367441744,-2491.21,0.00021095,2]
[343117481,1732367441754,-500.0,0.00021095,2]
[343117483,1732367441764,-500.0,0.00021095,2]
[343117486,1732367441774,-500.0,0.00021095,2]
[343117488,1732367441784,-500.0,0.00021095,2]
[343117490,1732367441797,-500.0,0.00021095,2]
[343117492,1732367441807,-500.0,0.00021095,2]
[343117494,1732367441816,-500.0,0.00021095,2]
[343117496,1732367441826,-550.14,0.00021095,2]
[343117498,1732367441836,-500.0,0.00021095,2]
[343117500,1732367441846,-500.0,0.00021095,2]
[343117502,1732367441856,-605.55,0.00021095,2]
[343117504,1732367441865,-500.0,0.00021095,2]
[343117506,1732367441876,-4486.55,0.00021095,2]
[343117508,1732367441885,-1776.08,0.00021095,2]
[343117510,1732367441895,-685.27,0.00021095,2]
[343117512,1732367441905,-500.0,0.00021095,2]
[343117514,1732367441916,-500.0,0.00021095,2]
[343117516,1732367441927,-585.23,0.00021095,2]
[343117518,1732367441936,-1295.74,0.00021095,2]
[343117520,1732367441946,-500.0,0.00021095,2]
[343117522,1732367441956,-500.0,0.00021095,2]
[343117524,1732367441966,-500.0,0.00021369,2]
[343117526,1732367441976,-509.63,0.00021369,2]
[343117528,1732367441985,-500.0,0.00021369,2]
[343117530,1732367441995,-500.0,0.00021369,2]
[343117532,1732367442004,-500.0,0.00021369,2]
[343117534,1732367442014,-500.0,0.00021369,2]
[343117536,1732367442024,-500.0,0.00021369,2]
[343117538,1732367442036,-500.0,0.00021369,2]
[343117540,1732367442047,-500.0,0.00021369,2]
[343117542,1732367442057,-1119.64,0.00021369,2]
[343117544,1732367442068,-500.0,0.00021369,2]
[343117546,1732367442078,-500.0,0.00021369,2]
[343117548,1732367442088,-500.0,0.00021369,2]
[343117550,1732367442099,-500.0,0.00021369,2]
[343117552,1732367442109,-231.72288335,0.00021369,2]
[343117554,1732367442118,-500.0,0.00021369,2]
[343117556,1732367442128,-306.10708645,0.00021369,2]
[343117558,1732367442138,-500.0,0.00021369,2]
[343117560,1732367442147,-500.0,0.00021369,2]
[343117562,1732367442157,-522.84,0.00021369,2]
[343117564,1732367442170,-1131.53,0.00021369,2]
[343117566,1732367442180,-500.0,0.00021369,2]
[343117568,1732367442193,-500.0,0.00021369,2]
[343117570,1732367442203,-500.0,0.00021369,2]
[343117572,1732367442214,-500.0,0.00021369,2]
[343117575,1732367442224,-500.0,0.00021369,2]
[343117577,1732367442235,-575.15,0.00021369,2]
[343117579,1732367442245,-500.0,0.00021369,2]
[343117581,1732367442256,-756.3,0.00021369,2]
[343117583,1732367442267,-500.0,0.00021369,2]
[343117585,1732367442277,-500.0,0.00021369,2]
[343117587,1732367442286,-500.0,0.00021369,2]
[343117589,1732367442296,-500.0,0.00021369,2]
[343117590,1732367442305,-500.0,0.00021369,2]
[343117592,1732367442316,-500.0,0.00021369,2]
[343117595,1732367442326,-379.0435749,0.00021369,2]
[343117596,1732367442335,-500.0,0.00021369,2]
[343117599,1732367442344,-500.0,0.00021369,2]
[343117600,1732367442353,-458.33730302,0.00021369,2]
[343117603,1732367442363,-500.0,0.00021369,2]
[343117605,1732367442372,-445.6816264,0.00021369,2]
[343117607,1732367442382,-500.0,0.00021369,2]
[343117609,1732367442392,-1303.95,0.00021369,2]
[343117611,1732367442401,-500.0,0.00021369,2]
[343117613,1732367442411,-500.0,0.00021369,2]
[343117615,1732367442425,-335.28372392,0.00021369,2]
[343117617,1732367442435,-836.89,0.00021369,2]
[343117619,1732367442445,-9333.42,0.00021369,2]
[343117625,1732367442492,-255.05643581,0.00021369,2]
[343117627,1732367442502,-509.92,0.00021369,2]
[343117629,1732367442511,-387.83477978,0.00021369,2]
[343117631,1732367442520,-500.0,0.00021369,2]
[343117633,1732367442530,-626.31904427,0.00021369,2]
[343117635,1732367442539,-706.44,0.00021369,2]
[343117637,1732367442548,-500.0,0.00021369,2]
[343117639,1732367442558,-500.0,0.00021369,2]
[343117641,1732367442567,-500.0,0.00021369,2]
[343117643,1732367442577,-500.0,0.00021369,2]
[343117645,1732367442586,-500.0,0.00021369,2]
[343117647,1732367442595,-500.0,0.00021369,2]
[343117649,1732367442605,-2491.21,0.00021369,2]
[343117651,1732367442615,-371.55714301,0.00021369,2]
[343117653,1732367442624,-500.0,0.00021369,2]
[343117655,1732367442633,-500.0,0.00021369,2]
[343117657,1732367442642,-614.91893018,0.00021369,2]
[343117659,1732367442653,-500.0,0.00021369,2]
[343117661,1732367442662,-500.0,0.00021369,2]
[343117663,1732367442673,-500.0,0.00021369,2]
[343117666,1732367442683,-550.14,0.00021369,2]
[343117667,1732367442694,-311.03931505,0.00021369,2]
[343117670,1732367442704,-215.61566235,0.00021369,2]
[343117672,1732367442714,-605.55,0.00021369,2]
[343117674,1732367442723,-500.0,0.00021369,2]
[343117676,1732367442732,-4486.55,0.00021369,2]
[343117678,1732367442742,-1776.08,0.00021369,2]
[343117680,1732367442751,-685.27,0.00021369,2]
[343117682,1732367442760,-623.12012555,0.00021369,2]
[343117684,1732367442770,-604.18869091,0.00021369,2]
[343117686,1732367442779,-585.23,0.00021369,2]
[343117688,1732367442788,-1295.74,0.00021369,2]
[343117690,1732367442797,-500.0,0.00021369,2]
[343117692,1732367442806,-500.0,0.00021369,2]
[343117694,1732367442815,-1790.54,0.000215,2]
[343117696,1732367442825,-500.0,0.00021643,2]
[343117698,1732367442834,-509.63,0.00021643,2]
[343117700,1732367442843,-500.0,0.00021643,2]
[343117701,1732367442852,-304.12093706,0.00021643,2]
[343117704,1732367442861,-501.5747553,0.00021643,2]
[343117706,1732367442871,-500.0,0.00021643,2]
[343117707,1732367442880,-204.2992272,0.00021643,2]
[343117709,1732367442889,-500.0,0.00021643,2]
[343117711,1732367442898,-500.0,0.00021643,2]
[343117713,1732367442907,-1119.64,0.00021643,2]
[343117716,1732367442918,-500.0,0.00021643,2]
[343117718,1732367442928,-500.0,0.00021643,2]
[343117720,1732367442938,-500.0,0.00021643,2]
[343117721,1732367442947,-500.0,0.00021643,2]
[343117723,1732367442957,-500.0,0.00021643,2]
[343117725,1732367442966,-447.06576706,0.00021643,2]
[343117727,1732367442976,-500.0,0.00021643,2]
[343117730,1732367442985,-522.84,0.00021643,2]
[343117731,1732367442995,-1131.53,0.00021643,2]
[343117733,1732367443005,-500.0,0.00021643,2]
[343117735,1732367443014,-500.0,0.00021643,2]
[343117738,1732367443024,-225.99511447,0.00021643,2]
[343117740,1732367443033,-500.0,0.00021643,2]
[343117741,1732367443043,-500.0,0.00021643,2]
[343117744,1732367443053,-575.15,0.00021643,2]
[343117746,1732367443063,-500.0,0.00021643,2]
[343117748,1732367443073,-756.3,0.00021643,2]
[343117750,1732367443082,-539.21071078,0.00021643,2]
[343117753,1732367443092,-243.47844562,0.00021643,2]
[343117756,1732367443101,-500.0,0.00021643,2]
[343117760,1732367443111,-500.0,0.00021643,2]
[343117761,1732367443121,-346.04653992,0.00021643,2]
[343117765,1732367443131,-500.0,0.00021643,2]
[343117767,1732367443141,-500.0,0.00021643,2]
[343117771,1732367443150,-500.0,0.00021643,2]
[343117772,1732367443160,-500.0,0.00021643,2]
[343117775,1732367443174,-500.0,0.00021643,2]
[343117779,1732367443190,-1303.95,0.00021643,2]
[343117783,1732367443201,-500.0,0.00021643,2]
[343117787,1732367443211,-500.0,0.00021643,2]
[343117791,1732367443223,-836.89,0.00021643,2]
[343117794,1732367443234,-9333.42,0.00021643,2]
[343117797,1732367443244,-509.92,0.00021643,2]
[343117802,1732367443255,-500.0,0.00021643,2]
[343117805,1732367443266,-706.44,0.00021643,2]
[343117808,1732367443277,-500.0,0.00021643,2]
[343117811,1732367443288,-451.8409462,0.00021643,2]
[343117814,1732367443297,-500.0,0.00021643,2]
[343117817,1732367443307,-500.0,0.00021643,2]
[343117820,1732367443317,-500.0,0.00021643,2]
[343117823,1732367443326,-500.0,0.00021643,2]
[343117826,1732367443335,-2491.21,0.00021643,2]
[343117829,1732367443345,-500.0,0.00021643,2]
[343117832,1732367443355,-500.0,0.00021643,2]
[343117835,1732367443364,-500.0,0.00021643,2]
[343117837,1732367443374,-500.0,0.00021643,2]
[343117840,1732367443384,-500.0,0.00021643,2]
[343117841,1732367443394,-550.14,0.00021643,2]
[343117844,1732367443404,-605.55,0.00021643,2]
[343117846,1732367443413,-500.0,0.00021643,2]
[343117847,1732367443426,-4486.55,0.00021643,2]
[343117849,1732367443435,-1776.08,0.00021643,2]
[343117851,1732367443445,-685.27,0.00021643,2]
[343117853,1732367443454,-585.23,0.00021643,2]
[343117855,1732367443463,-1295.74,0.00021643,2]
[343117857,1732367443473,-500.0,0.00021643,2]
[343117859,1732367443482,-500.0,0.00021643,2]
[343117861,1732367443491,-305.12887969,0.00021708,2]
[343117863,1732367443500,-627.34734359,0.00021917,2]
[343117865,1732367443510,-509.63,0.00021917,2]
[343117867,1732367443520,-500.0,0.00021917,2]
[343117869,1732367443530,-500.0,0.00021917,2]
[343117871,1732367443540,-500.0,0.00021917,2]
[343117873,1732367443550,-500.0,0.00021917,2]
[343117875,1732367443560,-1119.64,0.00021917,2]
[343117877,1732367443570,-500.0,0.00021917,2]
[343117880,1732367443580,-500.0,0.00021917,2]
[343117882,1732367443589,-500.0,0.00021917,2]
[343117884,1732367443599,-500.0,0.00021917,2]
[343117886,1732367443608,-500.0,0.00021917,2]
[343117887,1732367443617,-1000.0,0.00021917,10]
[343117890,1732367443627,-1000.0,0.00021917,10]
[343117892,1732367443636,-1000.0,0.00021917,10]
[343117893,1732367443647,-1000.0,0.00021917,10]
[343117896,1732367443657,-1000.0,0.00021917,10]
[343117897,1732367443668,-1000.0,0.00021917,10]
[343117899,1732367443678,-1000.0,0.00021917,10]
[343117902,1732367443688,-1000.0,0.00021917,10]
[343117903,1732367443698,-788.0105456,0.00021917,10]
[343117905,1732367443708,-500.0,0.00021917,2]
[343117907,1732367443718,-522.84,0.00021917,2]
[343117909,1732367443727,-1131.53,0.00021917,2]
[343117911,1732367443736,-500.0,0.00021917,2]
[343117913,1732367443746,-500.0,0.00021917,2]
[343117915,1732367443755,-500.0,0.00021917,2]
[343117917,1732367443764,-500.0,0.00021917,2]
[343117919,1732367443774,-575.15,0.00021917,2]
[343117921,1732367443783,-500.0,0.00021917,2]
[343117923,1732367443793,-756.3,0.00021917,2]
[343117925,1732367443803,-500.0,0.00021917,2]
[343117927,1732367443812,-500.0,0.00021917,2]
[343117929,1732367443821,-314.26612655,0.00021917,2]
[343117931,1732367443831,-500.0,0.00021917,2]
[343117933,1732367443840,-327.92473916,0.00021917,2]
[343117935,1732367443849,-500.0,0.00021917,2]
[343117937,1732367443859,-500.0,0.00021917,2]
[343117939,1732367443868,-1303.95,0.00021917,2]
[343117941,1732367443878,-241.49298428,0.00021917,2]
[343117943,1732367443887,-593.25379074,0.00021917,2]
[343117945,1732367443897,-836.89,0.00021917,2]
[343117947,1732367443907,-9333.42,0.00021917,2]
[343117949,1732367443918,-509.92,0.00021917,2]
[343117952,1732367443928,-500.0,0.00021917,2]
[343117954,1732367443937,-706.44,0.00021917,2]
[343117958,1732367443947,-500.0,0.00021917,2]
[343117961,1732367443957,-500.0,0.00021917,2]
[343117965,1732367443966,-500.0,0.00021917,2]
[343117969,1732367443975,-500.0,0.00021917,2]
[343117973,1732367443985,-604.51073925,0.00021917,2]
[343117976,1732367443995,-2491.21,0.00021917,2]
[343117979,1732367444005,-397.33584379,0.00021917,2]
[343117982,1732367444014,-500.0,0.00021917,2]
[343117985,1732367444023,-500.0,0.00021917,2]
[343117988,1732367444033,-213.59413649,0.00021917,2]
[343117991,1732367444044,-500.0,0.00021917,2]
[343117994,1732367444053,-550.14,0.00021917,2]
[343117997,1732367444063,-605.55,0.00021917,2]
[343118000,1732367444073,-500.0,0.00021917,2]
[343118002,1732367444083,-4486.55,0.00021917,2]
[343118005,1732367444095,-1776.08,0.00021917,2]
[343118009,1732367444104,-685.27,0.00021917,2]
[343118012,1732367444114,-585.23,0.00021917,2]
[343118015,1732367444124,-1295.74,0.00021917,2]
[343118018,1732367444133,-500.0,0.00021917,2]
[343118021,1732367444143,-500.0,0.00021917,2]
[343118024,1732367444153,-509.63,0.00022191,2]
[343118027,1732367444163,-500.0,0.00022191,2]
[343118030,1732367444174,-500.0,0.00022191,2]
[343118033,1732367444186,-500.0,0.00022191,2]
[343118036,1732367444196,-500.0,0.00022191,2]
[343118040,1732367444206,-1119.64,0.00022191,2]
[343118042,1732367444215,-500.0,0.00022191,2]
[343118045,1732367444227,-500.0,0.00022191,2]
[343118047,1732367444236,-500.0,0.00022191,2]
[343118049,1732367444245,-500.0,0.00022191,2]
[343118051,1732367444255,-500.0,0.00022191,2]
[343118053,1732367444265,-500.0,0.00022191,2]
[343118055,1732367444275,-522.84,0.00022191,2]
[343118057,1732367444285,-1131.53,0.00022191,2]
[343118059,1732367444295,-500.0,0.00022191,2]
[343118061,1732367444305,-500.0,0.00022191,2]
[343118063,1732367444315,-500.0,0.00022191,2]
[343118065,1732367444325,-500.0,0.00022191,2]
[343118067,1732367444335,-575.15,0.00022191,2]
[343118069,1732367444345,-500.0,0.00022191,2]
[343118071,1732367444354,-756.3,0.00022191,2]
[343118073,1732367444364,-500.0,0.00022191,2]
[343118075,1732367444374,-500.0,0.00022191,2]
[343118077,1732367444383,-500.0,0.00022191,2]
[343118079,1732367444393,-500.0,0.00022191,2]
[343118081,1732367444403,-500.0,0.00022191,2]
[343118083,1732367444412,-1303.95,0.00022191,2]
[343118085,1732367444423,-836.89,0.00022191,2]
[343118087,1732367444433,-9333.42,0.00022191,2]
[343118089,1732367444444,-509.92,0.00022191,2]
[343118091,1732367444454,-500.0,0.00022191,2]
[343118093,1732367444463,-706.44,0.00022191,2]
[343118096,1732367444474,-500.0,0.00022191,2]
[343118098,1732367444484,-500.0,0.00022191,2]
[343118100,1732367444494,-500.0,0.00022191,2]
[343118102,1732367444504,-500.0,0.00022191,2]
[343118104,1732367444514,-2491.21,0.00022191,2]
[343118106,1732367444523,-500.0,0.00022191,2]
[343118108,1732367444532,-229.80676085,0.00022191,2]
[343118110,1732367444542,-500.0,0.00022191,2]
[343118112,1732367444551,-550.14,0.00022191,2]
[343118114,1732367444561,-605.55,0.00022191,2]
[343118116,1732367444570,-500.0,0.00022191,2]
[343118118,1732367444579,-4486.55,0.00022191,2]
[343118120,1732367444589,-1776.08,0.00022191,2]
[343118122,1732367444599,-685.27,0.00022191,2]
[343118124,1732367444609,-585.23,0.00022191,2]
[343118126,1732367444618,-1295.74,0.00022191,2]
[343118128,1732367444628,-500.0,0.00022191,2]
[343118130,1732367444637,-500.0,0.00022191,2]
[343118132,1732367444647,-500.0,0.00022225,2]
[343118134,1732367444656,-509.63,0.00022465,2]
[343118136,1732367444666,-500.0,0.00022465,2]
[343118138,1732367444677,-500.0,0.00022465,2]
[343118140,1732367444686,-500.0,0.00022465,2]
[343118143,1732367444698,-500.0,0.00022465,2]
[343118145,1732367444708,-1119.64,0.00022465,2]
[343118147,1732367444717,-370.49950079,0.00022465,2]
[343118149,1732367444726,-643.00875133,0.00022465,2]
[343118151,1732367444736,-500.0,0.00022465,2]
[343118153,1732367444746,-500.0,0.00022465,2]
[343118155,1732367444755,-500.0,0.00022465,2]
[343118157,1732367444764,-500.0,0.00022465,2]
[343118159,1732367444774,-522.84,0.00022465,2]
[343118161,1732367444784,-1131.53,0.00022465,2]
[343118163,1732367444794,-500.0,0.00022465,2]
[343118165,1732367444803,-500.0,0.00022465,2]
[343118167,1732367444813,-500.0,0.00022465,2]
[343118169,1732367444822,-500.0,0.00022465,2]
[343118171,1732367444831,-575.15,0.00022465,2]
[343118173,1732367444840,-500.0,0.00022465,2]
[343118175,1732367444850,-756.3,0.00022465,2]
[343118177,1732367444859,-500.0,0.00022465,2]
[343118179,1732367444868,-500.0,0.00022465,2]
[343118181,1732367444878,-362.73146799,0.00022465,2]
[343118182,1732367444887,-500.0,0.00022465,2]
[343118183,1732367444896,-500.0,0.00022465,2]
[343118184,1732367444906,-1303.95,0.00022465,2]
[343118185,1732367444916,-836.89,0.00022465,2]
[343118186,1732367444928,-9333.42,0.00022465,2]
[343118187,1732367444941,-509.92,0.00022465,2]
[343118188,1732367444950,-500.0,0.00022465,2]
[343118189,1732367444959,-706.44,0.00022465,2]
[343118190,1732367444968,-500.0,0.00022465,2]
[343118191,1732367444978,-500.0,0.00022465,2]
[343118192,1732367444987,-500.0,0.00022465,2]
[343118193,1732367444996,-500.0,0.00022465,2]
[343118194,1732367445006,-2491.21,0.00022465,2]
[343118196,1732367445015,-500.0,0.00022465,2]
[343118198,1732367445025,-500.0,0.00022465,2]
[343118200,1732367445035,-550.14,0.00022465,2]
[343118202,1732367445045,-605.55,0.00022465,2]
[343118204,1732367445056,-500.0,0.00022465,2]
[343118206,1732367445065,-4486.55,0.00022465,2]
[343118208,1732367445077,-1776.08,0.00022465,2]
[343118210,1732367445092,-685.27,0.00022465,2]
[343118212,1732367445102,-1295.74,0.00022465,2]
[343118214,1732367445112,-585.23,0.00022465,2]
[343118216,1732367445123,-500.0,0.00022465,2]
[343118218,1732367445132,-500.0,0.00022465,2]
[343118220,1732367445143,-305.12887969,0.00022613,2]
[343118222,1732367445153,-509.63,0.00022739,2]
[343118224,1732367445163,-500.66095736,0.00022739,2]
[343118226,1732367445180,-500.0,0.00022739,2]
[343118228,1732367445197,-500.0,0.00022739,2]
[343118230,1732367445207,-500.0,0.00022739,2]
[343118232,1732367445218,-1119.64,0.00022739,2]
[343118234,1732367445230,-500.0,0.00022739,2]
[343118236,1732367445239,-500.0,0.00022739,2]
[343118238,1732367445250,-500.0,0.00022739,2]
[343118240,1732367445260,-500.0,0.00022739,2]
[343118242,1732367445270,-522.84,0.00022739,2]
[343118244,1732367445280,-1131.53,0.00022739,2]
[343118246,1732367445290,-495.49047597,0.00022739,2]
[343118248,1732367445300,-500.0,0.00022739,2]
[343118251,1732367445311,-500.0,0.00022739,2]
[343118253,1732367445321,-500.0,0.00022739,2]
[343118255,1732367445331,-575.15,0.00022739,2]
[343118257,1732367445341,-500.0,0.00022739,2]
[343118259,1732367445351,-756.3,0.00022739,2]
[343118261,1732367445361,-500.0,0.00022739,2]
[343118263,1732367445370,-500.0,0.00022739,2]
[343118265,1732367445379,-500.0,0.00022739,2]
[343118267,1732367445389,-559.16009031,0.00022739,2]
[343118269,1732367445399,-1303.95,0.00022739,2]
[343118271,1732367445409,-836.89,0.00022739,2]
[343118273,1732367445424,-9333.42,0.00022739,2]
[343118275,1732367445434,-509.92,0.00022739,2]
[343118277,1732367445445,-500.0,0.00022739,2]
[343118279,1732367445455,-706.44,0.00022739,2]
[343118281,1732367445466,-559.08058945,0.00022739,2]
[343118283,1732367445476,-500.0,0.00022739,2]
[343118285,1732367445485,-500.0,0.00022739,2]
[343118287,1732367445495,-477.55278187,0.00022739,2]
[343118289,1732367445505,-2491.21,0.00022739,2]
[343118291,1732367445515,-500.0,0.00022739,2]
[343118293,1732367445525,-563.42811643,0.00022739,2]
[343118294,1732367445535,-550.14,0.00022739,2]
[343118296,1732367445545,-605.55,0.00022739,2]
[343118298,1732367445554,-300.78504929,0.00022739,2]
[343118300,1732367445564,-4486.55,0.00022739,2]
[343118302,1732367445573,-1776.08,0.00022739,2]
[343118304,1732367445583,-685.27,0.00022739,2]
[343118306,1732367445592,-585.23,0.00022739,2]
[343118308,1732367445602,-1295.74,0.00022739,2]
[343118310,1732367445612,-612.30565445,0.00022739,2]
[343118312,1732367445622,-500.0,0.00022739,2]
[343118314,1732367445632,-1000.0,0.00022773,2]
[343118316,1732367445641,-509.63,0.00023013,2]
[343118318,1732367445651,-500.0,0.00023013,2]
[343118320,1732367445660,-500.0,0.00023013,2]
[343118322,1732367445672,-500.0,0.00023013,2]
[343118324,1732367445682,-1119.64,0.00023013,2]
[343118326,1732367445692,-444.66256652,0.00023013,2]
[343118328,1732367445701,-277.16058035,0.00023013,2]
[343118330,1732367445712,-567.03101078,0.00023013,2]
[343118332,1732367445721,-500.0,0.00023013,2]
[343118334,1732367445731,-522.84,0.00023013,2]
[343118336,1732367445741,-1131.53,0.00023013,2]
[343118338,1732367445750,-500.0,0.00023013,2]
[343118340,1732367445760,-500.0,0.00023013,2]
[343118342,1732367445770,-415.05742228,0.00023013,2]
[343118344,1732367445779,-575.15,0.00023013,2]
[343118346,1732367445788,-500.0,0.00023013,2]
[343118348,1732367445798,-756.3,0.00023013,2]
[343118350,1732367445807,-500.0,0.00023013,2]
[343118352,1732367445817,-500.0,0.00023013,2]
[343118354,1732367445826,-500.0,0.00023013,2]
[343118356,1732367445836,-1303.95,0.00023013,2]
[343118358,1732367445847,-836.89,0.00023013,2]
[343118360,1732367445856,-9333.42,0.00023013,2]
[343118362,1732367445867,-509.92,0.00023013,2]
[343118364,1732367445876,-600.7185091,0.00023013,2]
[343118366,1732367445886,-706.44,0.00023013,2]
[343118368,1732367445895,-500.0,0.00023013,2]
[343118370,1732367445905,-500.0,0.00023013,2]
[343118372,1732367445915,-2491.21,0.00023013,2]
[343118374,1732367445932,-500.0,0.00023013,2]
[343118376,1732367445942,-550.14,0.00023013,2]
[343118378,1732367445952,-605.55,0.00023013,2]
[343118380,1732367445962,-4486.55,0.00023013,2]
[343118382,1732367445972,-1776.08,0.00023013,2]
[343118384,1732367445982,-685.27,0.00023013,2]
[343118386,1732367445991,-585.23,0.00023013,2]
[343118388,1732367446001,-1295.74,0.00023013,2]
[343118391,1732367446010,-500.0,0.00023013,2]
[343118394,1732367446020,-509.63,0.00023287,2]
[343118396,1732367446030,-500.0,0.00023287,2]
[343118398,1732367446040,-500.0,0.00023287,2]
[343118401,1732367446050,-500.0,0.00023287,2]
[343118403,1732367446060,-1119.64,0.00023287,2]
[343118406,1732367446069,-500.0,0.00023287,2]
[343118409,1732367446079,-522.84,0.00023287,2]
[343118411,1732367446089,-1131.53,0.00023287,2]
[343118413,1732367446099,-500.0,0.00023287,2]
[343118415,1732367446108,-195.33214618,0.00023287,2]
[343118417,1732367446118,-575.15,0.00023287,2]
[343118419,1732367446128,-500.0,0.00023287,2]
[343118421,1732367446138,-756.3,0.00023287,2]
[343118423,1732367446148,-220.28725394,0.00023287,2]
[343118425,1732367446158,-500.0,0.00023287,2]
[343118427,1732367446169,-500.0,0.00023287,2]
[343118429,1732367446179,-1303.95,0.00023287,2]
[343118431,1732367446192,-836.89,0.00023287,2]
[343118433,1732367446202,-9333.42,0.00023287,2]
[343118435,1732367446212,-509.92,0.00023287,2]
[343118437,1732367446223,-706.44,0.00023287,2]
[343118439,1732367446233,-166.08484022,0.00023287,2]
[343118441,1732367446243,-500.0,0.00023287,2]
[343118443,1732367446253,-2491.21,0.00023287,2]
[343118445,1732367446264,-500.0,0.00023287,2]
[343118447,1732367446274,-550.14,0.00023287,2]
[343118450,1732367446284,-605.55,0.00023287,2]
[343118452,1732367446294,-4486.55,0.00023287,2]
[343118454,1732367446303,-1776.08,0.00023287,2]
[343118469,1732367446440,-685.27,0.00023287,2]
[343118471,1732367446451,-585.23,0.00023287,2]
[343118473,1732367446460,-1295.74,0.00023287,2]
[343118475,1732367446471,-500.0,0.00023287,2]
[343118477,1732367446481,-305.12887969,0.00023517,2]
[343118479,1732367446491,-509.63,0.00023561,2]
[343118481,1732367446501,-500.0,0.00023561,2]
[343118483,1732367446510,-500.0,0.00023561,2]
[343118485,1732367446519,-500.0,0.00023561,2]
[343118486,1732367446528,-1119.64,0.00023561,2]
[343118487,1732367446538,-500.0,0.00023561,2]
[343118488,1732367446547,-522.84,0.00023561,2]
[343118489,1732367446556,-1131.53,0.00023561,2]
[343118490,1732367446565,-500.0,0.00023561,2]
[343118491,1732367446574,-575.15,0.00023561,2]
[343118492,1732367446583,-500.0,0.00023561,2]
[343118493,1732367446592,-756.3,0.00023561,2]
[343118494,1732367446602,-500.0,0.00023561,2]
[343118495,1732367446611,-500.0,0.00023561,2]
[343118496,1732367446621,-1303.95,0.00023561,2]
[343118497,1732367446630,-836.89,0.00023561,2]
[343118498,1732367446638,-9333.42,0.00023561,2]
[343118499,1732367446648,-509.92,0.00023561,2]
[343118500,1732367446657,-706.44,0.00023561,2]
[343118501,1732367446668,-451.01650025,0.00023561,2]
[343118502,1732367446678,-2491.21,0.00023561,2]
[343118503,1732367446688,-500.0,0.00023561,2]
[343118504,1732367446698,-550.14,0.00023561,2]
[343118505,1732367446707,-605.55,0.00023561,2]
[343118506,1732367446717,-4486.55,0.00023561,2]
[343118507,1732367446726,-1776.08,0.00023561,2]
[343118508,1732367446735,-685.27,0.00023561,2]
[343118509,1732367446746,-585.23,0.00023561,2]
[343118510,1732367446758,-1295.74,0.00023561,2]
[343118511,1732367446768,-500.0,0.00023561,2]
[343118514,1732367446777,-1500.0,0.00023775,2]
[343118517,1732367446786,-509.63,0.00023835,2]
[343118520,1732367446795,-500.0,0.00023835,2]
[343118522,1732367446804,-500.0,0.00023835,2]
[343118524,1732367446814,-500.0,0.00023835,2]
[343118526,1732367446824,-1119.64,0.00023835,2]
[343118528,1732367446833,-354.77130902,0.00023835,2]
[343118530,1732367446843,-522.84,0.00023835,2]